[Event "Berliner Einzelmeisterschaft 2002"]
[Site "Berlin"]
[Date "2022.04.21"]
[Round "7.6"]
[White "Meyer-Dunker, Paul"]
[Black "Niehaus, Frank"]
[Result "1/2-1/2"]
[ECO "B75"]
[WhiteElo "2082"]
[BlackElo "2045"]
[Annotator "TheRocket"]
[PlyCount "118"]
[EventDate "2022.??.??"]
[EventCountry "GER"]
[SourceTitle "SV Mattnetz Berlin e.V."]
[SourceDate "2022.04.23"]
[SourceVersion "1"]
[SourceVersionDate "2022.04.23"]
[SourceQuality "1"]
[TimeControl "40/5400+30:1800+30"]

1. e4 {[%emt 0:00:28]} c5 {[%emt 0:00:26]} 2. Nf3 {[%emt 0:00:03]} d6 {[%emt 0:
00:15]} 3. d4 {[%emt 0:00:02]} cxd4 {[%emt 0:00:19]} 4. Nxd4 {[%emt 0:00:02]}
Nf6 {[%emt 0:00:23]} 5. Nc3 {[%emt 0:00:01]} g6 {[%emt 0:00:14]} 6. Be3 {
[%emt 0:00:03]} Bg7 {[%emt 0:00:23]} 7. f3 $14 {[%emt 0:00:02]} a6 {[%emt 0:00:
49]} 8. Qd2 {[%emt 0:00:28]} h5 {[%emt 0:00:38]} 9. Bc4 {[%emt 0:06:04]} b5 {
[%emt 0:00:49]} 10. Bd5 {[%emt 0:17:25]} Nxd5 {[%emt 0:00:15]} 11. Nxd5 {
[%emt 0:00:50]} Bb7 {[%emt 0:00:12]} 12. O-O-O {[%emt 0:01:19]} Nd7 {[%emt 0:
00:23]} 13. Bg5 {[%emt 0:03:44]} Bxd5 {[%emt 0:07:28]} 14. exd5 {[%emt 0:07:30]
} Qb6 {[%emt 0:01:08]} 15. Rhe1 {[%emt 0:06:16]} Nf6 {[%emt 0:01:43]} 16. Nc6 {
[%emt 0:11:07]} O-O {[%emt 0:04:49]} 17. Nxe7+ {[%emt 0:04:03]} Kh7 {[%emt 0:
00:06]} 18. g4 {[%emt 0:03:13]} hxg4 {[%emt 0:03:32]} 19. fxg4 {[%emt 0:00:26]}
Rae8 {[%emt 0:07:10]} 20. Re3 {[%emt 0:06:58]} Rxe7 {[%emt 0:00:10]} 21. Rxe7 {
[%emt 0:01:11]} Qc5 {[%emt 0:01:19]} 22. Re3 {[%emt 0:02:40]} Nxg4 {[%emt 0:05:
30]} 23. Rh3+ {[%emt 0:07:56]} Kg8 {[%emt 0:00:05]} 24. Be3 {[%emt 0:09:54]}
Nxe3 {[%emt 0:02:00]} 25. b4 {[%emt 0:03:53]} Qc4 {[%emt 0:02:56]} 26. Qxe3 {
[%emt 0:02:27]} Qxa2 {[%emt 0:00:21]} 27. Qa3 {[%emt 0:02:16]} Bh6+ {[%emt 0:
04:18]} 28. Rd2 {[%emt 0:00:40]} Qxa3+ {[%emt 0:02:33]} 29. Rxa3 {[%emt 0:03:
59]} Re8 {[%emt 0:00:12]} 30. Kd1 {[%emt 0:00:00]} Bxd2 {[%emt 0:00:08]} 31.
Kxd2 {[%emt 0:00:00]} Re5 {[%emt 0:00:09]} 32. Rxa6 {[%emt 0:00:00]} Rxd5+ {
[%emt 0:00:06]} 33. Ke3 {[%emt 0:00:00]} Kf8 {[%emt 0:02:21]} 34. Ke4 {[%emt 0:
00:35]} Rd2 {[%emt 0:00:47]} 35. c3 {[%emt 0:00:46]} Ke7 {[%emt 0:04:43]} 36.
Rb6 {[%emt 0:00:33]} Rxh2 {[%emt 0:05:24]} 37. Rxb5 {[%emt 0:00:01]} f5+ {
[%emt 0:02:59]} 38. Ke3 {[%emt 0:00:02]} Ke6 {[%emt 0:03:06]} 39. c4 {[%emt 0:
00:23]} Rh3+ {[%emt 0:03:56]} 40. Kd4 {[%emt 0:02:23]} Rh4+ {[%emt 0:00:18]}
41. Kd3 {[%emt 0:30:20]} g5 {[%emt 0:36:23]} 42. Rb6 {[%emt 0:00:00]} g4 {
[%emt 0:00:00]} 43. c5 {[%emt 0:00:00]} g3 {[%emt 0:00:00]} 44. Rxd6+ {[%emt 0:
00:00]} Kf7 {[%emt 0:00:00]} 45. Rd7+ {[%emt 0:00:00]} Kf6 {[%emt 0:00:00]} 46.
Rd6+ {[%emt 0:00:00]} Kg5 {[%emt 0:00:00]} 47. Rd8 {[%emt 0:00:00]} Rg4 {
[%emt 0:03:53]} 48. Rg8+ {[%emt 0:00:00]} Kf4 {[%emt 0:00:06]} 49. Rxg4+ {
[%emt 0:00:00]} Kxg4 {[%emt 0:00:05]} 50. Ke2 {[%emt 0:00:00]} Kh3 {[%emt 0:00:
09]} 51. c6 {[%emt 0:00:00]} g2 {[%emt 0:00:34]} 52. c7 {[%emt 0:00:00]} g1=Q {
[%emt 0:00:16]} 53. c8=Q {[%emt 0:00:00]} Qg4+ {[%emt 0:01:21]} 54. Kf2 {
[%emt 0:00:00]} Qf4+ {[%emt 0:01:15]} 55. Ke2 {[%emt 0:00:00]} Qe4+ {[%emt 0:
00:40]} 56. Kf2 {[%emt 0:00:00]} Qf4+ {[%emt 0:01:17]} 57. Ke2 {[%emt 0:00:00]}
Qxb4 {[%emt 0:00:14]} 58. Qxf5+ {[%emt 0:00:00]} Qg4+ {[%emt 0:00:04]} 59.
Qxg4+ {[%emt 0:00:00]} Kxg4 {[%emt 0:29:20]} 1/2-1/2

[Event "Berliner Einzelmeisterschaft 2002"]
[Site "Berlin"]
[Date "2022.04.21"]
[Round "7.8"]
[White "Acikel, Mert"]
[Black "Brustkern, Juergen"]
[Result "1-0"]
[ECO "B31"]
[WhiteElo "2177"]
[BlackElo "2226"]
[Annotator "TheRocket"]
[PlyCount "69"]
[EventDate "2022.??.??"]
[EventCountry "GER"]
[SourceTitle "SV Mattnetz Berlin e.V."]
[SourceDate "2022.04.23"]
[SourceVersion "1"]
[SourceVersionDate "2022.04.23"]
[SourceQuality "1"]
[TimeControl "40/5400+30:1800+30"]

1. e4 {[%emt 0:14:00]} c5 {[%emt 0:00:18]} 2. Nf3 {[%emt 0:00:14]} Nc6 {
[%emt 0:00:05]} 3. Bb5 {[%emt 0:00:16]} g6 {[%emt 0:00:58]} 4. O-O {[%emt 0:00:
18]} Bg7 {[%emt 0:00:08]} 5. Nc3 {[%emt 0:00:16]} Nh6 {[%emt 0:01:19]} 6. Re1 {
[%emt 0:00:51]} O-O {[%emt 0:00:15]} 7. h3 {[%emt 0:04:40]} a6 {[%emt 0:02:57]}
8. Bxc6 {[%emt 0:01:15]} bxc6 {[%emt 0:00:20]} 9. d3 {[%emt 0:00:40]} d6 {
[%emt 0:01:47]} 10. Be3 {[%emt 0:05:41]} f5 {[%emt 0:00:46]} 11. Qd2 {[%emt 0:
02:40]} fxe4 {[%emt 0:05:52]} 12. dxe4 {[%emt 0:08:00]} Nf7 {[%emt 0:00:13]}
13. Bf4 {[%emt 0:00:35]} e5 {[%emt 0:13:29]} 14. Be3 {[%emt 0:00:32]} h6 {
[%emt 0:01:12]} 15. Qd3 {[%emt 0:08:44]} Be6 {[%emt 0:07:41]} 16. b3 {[%emt 0:
00:55]} Qe7 {[%emt 0:05:43]} 17. Rad1 {[%emt 0:03:43]} Rfd8 {[%emt 0:03:41]}
18. Na4 {[%emt 0:00:26]} a5 {[%emt 0:01:41]} 19. Nd2 {[%emt 0:04:29]} Bf8 {
[%emt 0:07:32]} 20. Nc4 {[%emt 0:01:49]} Qc7 {[%emt 0:07:38]} 21. f4 {[%emt 0:
06:55]} d5 {[%emt 0:13:06]} 22. exd5 {[%emt 0:00:49]} Bf5 {[%emt 0:00:06]} 23.
d6 {[%emt 0:00:17]} Bxd6 {[%emt 0:01:40]} 24. Qe2 {[%emt 0:06:57]} exf4 {
[%emt 0:04:33]} 25. Nxd6 {[%emt 0:00:17]} fxe3 {[%emt 0:00:08]} 26. Nxf5 {
[%emt 0:00:48]} gxf5 {[%emt 0:00:45]} 27. Qxe3 {[%emt 0:03:31]} c4 {[%emt 0:05:
17]} 28. Rxd8+ {[%emt 0:08:05]} Rxd8 {[%emt 0:00:33]} 29. Nc5 {[%emt 0:00:18]}
f4 {[%emt 0:06:16]} 30. Qf2 {[%emt 0:00:19]} Rd5 {[%emt 0:02:07]} 31. Ne6 {
[%emt 0:03:01]} Qd6 {[%emt 0:01:13]} 32. Qh4 {[%emt 0:07:53]} cxb3 {[%emt 0:03:
25]} 33. axb3 {[%emt 0:03:58]} Ng5 {[%emt 0:01:14]} 34. Qxh6 {[%emt 0:02:10]}
Nxe6 {[%emt 0:00:34]} 35. Rxe6 {[%emt 0:00:56]} 1-0

[Event "Berliner Einzelmeisterschaft 2002"]
[Site "Berlin"]
[Date "2022.04.22"]
[Round "8.1"]
[White "Stern, Rene"]
[Black "Florstedt, Johannes"]
[Result "0-1"]
[ECO "C47"]
[WhiteElo "2510"]
[BlackElo "2316"]
[Annotator "TheRocket"]
[PlyCount "104"]
[EventDate "2022.??.??"]
[EventCountry "GER"]
[SourceTitle "SV Mattnetz Berlin e.V."]
[SourceDate "2022.04.23"]
[SourceVersion "1"]
[SourceVersionDate "2022.04.23"]
[SourceQuality "1"]
[TimeControl "40/5400+30:1800+30"]

{[%evp 0,122,25,16,10,25,17,19,6,8,10,10,-1,7,7,16,12,20,14,11,20,11,-12,5,14,
0,0,-3,4,-7,-10,-10,-16,-27,8,-24,-31,-8,-8,-15,-23,-22,-21,-10,-7,-16,-21,-30,
-17,-10,-10,-8,5,10,-2,-55,1,0,-2,-6,-7,-10,-13,-15,-3,-10,-8,-3,0,0,0,-20,-24,
-46,-53,-67,-70,-66,-62,-60,-66,-85,-77,-74,-63,-76,-76,-94,-56,-111,-34,-34,
-34,-34,-34,-34,0,0,-6,-205,-168,-200,-198,-287,-318,-332,-332,-345,-346,-345,
-369,-371,-438,-436,-483,-475,-483,-876,-271,-666,-866,-1012,-1022,-1022,-603]
} 1. Nf3 Nf6 2. c4 g6 3. Nc3 Bg7 4. e4 e5 5. Nxe5 O-O 6. Nf3 Re8 7. d3 d5 8.
cxd5 Nxd5 9. Bd2 Bg4 10. Be2 Bxf3 11. gxf3 Nb4 12. Be3 N8c6 13. a3 Na6 14. h4
Nd4 15. h5 Nc5 16. hxg6 hxg6 17. f4 Qd6 18. e5 Qc6 19. Rh3 Rad8 20. Kf1 Nxe2
21. Qxe2 Rxd3 22. Rd1 Red8 23. Bxc5 Rxd1+ 24. Nxd1 Qxc5 25. Nc3 Qc6 26. Kg1 Rd4
27. Qe3 Qd7 28. Rg3 c5 29. Ne4 Qd5 30. Nc3 Qc4 31. f5 gxf5 32. Ne2 f4 33. Rxg7+
Kxg7 34. Qf3 Rd1+ 35. Kh2 Qd5 36. Qg4+ Kf8 37. Qc8+ Ke7 38. Qc7+ Ke8 39. Qc8+
Ke7 40. Qc7+ Kf8 41. Qc8+ Qd8 42. Qxc5+ Kg7 43. Nxf4 Qh8+ 44. Kg3 Qh1 45. Ne6+
Kh7 46. Kf4 Qh2+ 47. Kf3 Qh5+ 48. Kg2 Qg4+ 49. Kh2 Qg1+ 50. Kh3 Rd3+ 51. Kh4
Qh2+ 52. Kg4 Qh3+ 0-1

[Event "Berliner Einzelmeisterschaft 2002"]
[Site "Berlin"]
[Date "2022.04.22"]
[Round "8.2"]
[White "Nogly, Christoph"]
[Black "Lagunow, Raphael"]
[Result "0-1"]
[ECO "E70"]
[WhiteElo "2245"]
[BlackElo "2385"]
[Annotator "TheRocket"]
[PlyCount "114"]
[EventDate "2022.??.??"]
[EventCountry "GER"]
[SourceTitle "SV Mattnetz Berlin e.V."]
[SourceDate "2022.04.23"]
[SourceVersion "1"]
[SourceVersionDate "2022.04.23"]
[SourceQuality "1"]
[TimeControl "40/5400+30:1800+30"]

{[%evp 0,114,17,24,28,0,36,25,37,49,46,20,15,22,15,22,26,23,24,17,26,4,-3,-22,
-26,-35,11,-69,-59,-64,49,-51,-57,-37,-44,-38,-45,-62,-54,-50,-35,-33,-38,-30,
-30,-103,-123,-103,-98,-96,-58,-96,-86,-79,-108,-101,-114,-142,-142,-157,-149,
-175,-211,-222,-228,-220,-183,-164,-140,-160,-152,-228,-229,-229,-230,-229,
-196,-222,-181,-178,-180,-180,-105,-114,-45,-104,-38,-38,-41,-113,-29,-85,-44,
-44,0,-99,-101,-93,-99,-92,-98,-129,-122,-152,-147,-254,-243,-509,-521,-667,
-667,-677,-687,-697,-697,-697,-697]} 1. d4 {[%emt 0:00:30]} Nf6 {[%emt 0:00:30]
} 2. c4 {[%emt 0:00:30]} g6 {[%emt 0:00:30]} 3. Nc3 {[%emt 0:00:30]} Bg7 4. e4
d6 {[%emt 0:05:53]} 5. Bd3 {[%emt 0:00:52]} O-O {[%emt 0:00:14]} 6. Nge2 {
[%emt 0:00:03]} Nc6 {[%emt 0:00:22]} 7. O-O {[%emt 0:00:18]} e5 {[%emt 0:00:11]
} 8. d5 {[%emt 0:00:04]} Nd4 {[%emt 0:00:05]} 9. Nxd4 {[%emt 0:03:44]} exd4 {
[%emt 0:00:10]} 10. Ne2 {[%emt 0:00:37]} Nd7 {[%emt 0:00:25]} 11. f3 {[%emt 0:
08:30]} c5 {[%emt 0:02:48]} 12. Bd2 {[%emt 0:07:11]} b5 {[%emt 0:11:12]} 13. b3
{[%emt 0:16:36]} Ne5 {[%emt 0:05:14]} 14. Qc2 {[%emt 0:00:06]} Re8 {[%emt 0:28:
06]} 15. Rae1 {[%emt 0:13:42]} bxc4 {[%emt 0:07:20]} 16. bxc4 {[%emt 0:00:09]}
Bd7 {[%emt 0:01:00]} 17. Rb1 {[%emt 0:03:55]} Qc7 {[%emt 0:00:41]} 18. Ng3 {
[%emt 0:03:53]} h5 {[%emt 0:02:00]} 19. Nh1 {[%emt 0:07:10]} Qc8 {[%emt 0:07:
09]} 20. Nf2 {[%emt 0:01:45]} Qa6 {[%emt 0:00:30]} 21. Be2 {[%emt 0:06:49]}
Rab8 {[%emt 0:04:54]} 22. f4 {[%emt 0:03:44]} Rxb1 {[%emt 0:03:37]} 23. Rxb1 {
[%emt 0:01:51]} d3 {[%emt 0:00:58]} 24. Bxd3 {[%emt 0:01:15]} Nxd3 {[%emt 0:06:
42]} 25. Nxd3 {[%emt 0:00:13]} Ba4 {[%emt 0:02:49]} 26. Qc1 {[%emt 0:00:16]}
Rxe4 {[%emt 0:00:06]} 27. f5 {[%emt 0:04:49]} Qxc4 {[%emt 0:03:51]} 28. Qxc4 {
[%emt 0:05:05]} Rxc4 {[%emt 0:00:01]} 29. Rb8+ {[%emt 0:00:11]} Kh7 {[%emt 0:
00:07]} 30. fxg6+ {[%emt 0:00:04]} Kxg6 {[%emt 0:01:52]} 31. Nf4+ {[%emt 0:01:
40]} Kf5 {[%emt 0:01:04]} 32. Rb7 {[%emt 0:00:25]} Be5 {[%emt 0:01:22]} 33.
Rxf7+ {[%emt 0:00:42]} Ke4 {[%emt 0:00:01]} 34. Nxh5 {[%emt 0:05:23]} Rc2 {
[%emt 0:00:19]} 35. Bf4 {[%emt 0:00:44]} Bd4+ {[%emt 0:04:36]} 36. Kh1 {
[%emt 0:00:11]} Kxd5 {[%emt 0:00:05]} 37. h4 {[%emt 0:01:53]} Be8 {[%emt 0:01:
17]} 38. Rf5+ {[%emt 0:02:00]} Ke4 {[%emt 0:00:50]} 39. Ng3+ {[%emt 0:00:06]}
Kd3 {[%emt 0:00:03]} 40. Rg5 {[%emt 0:02:26]} Bc6 {[%emt 0:00:56]} 41. Nf5 {
[%emt 0:08:30]} Rf2 {[%emt 0:16:00]} 42. Bxd6 {[%emt 0:09:47]} Bf6 {[%emt 0:03:
15]} 43. Rg3+ {[%emt 0:01:40]} Ke2 {[%emt 0:00:13]} 44. Ne3 {[%emt 0:01:46]}
Bxh4 {[%emt 0:07:21]} 45. Rg4 {[%emt 0:00:12]} Kxe3 {[%emt 0:01:47]} 46. Bxc5+
{[%emt 0:00:16]} Ke2 {[%emt 0:00:04]} 47. Bxf2 {[%emt 0:02:35]} Bxf2 {[%emt 0:
00:04]} 48. Kh2 {[%emt 0:00:48]} Kd3 {[%emt 0:01:00]} 49. Rg6 {[%emt 0:00:43]}
Bd5 {[%emt 0:00:31]} 50. g4 {[%emt 0:03:15]} Bxa2 {[%emt 0:01:02]} 51. Rd6+ {
[%emt 0:00:39]} Bd4 {[%emt 0:00:15]} 52. Kg2 {[%emt 0:01:01]} Bc4 {[%emt 0:02:
10]} 53. g5 {[%emt 0:02:02]} a5 {[%emt 0:00:04]} 54. g6 {[%emt 0:00:20]} a4 {
[%emt 0:00:18]} 55. g7 {[%emt 0:01:26]} a3 {[%emt 0:01:01]} 56. Ra6 {[%emt 0:
02:07]} a2 {[%emt 0:00:04]} 57. Ra4 {[%emt 0:00:13]} a1=Q {[%emt 0:00:27]} 0-1